fUST/lending_fUST_20241113
["ID","MTS","AMOUNT","RATE_DAILY","PERIOD"]
[342099303,1731439851431,-3000.0,0.0002197,2]
[342099304,1731439851440,-276.31187487,0.00021973,2]
[342099305,1731439851449,-500.0,0.00021973,2]
[342099306,1731439851459,-500.0,0.00021973,2]
[342099307,1731439851468,-500.0,0.00021973,2]
[342099308,1731439851477,-500.0,0.00021973,2]
[342099309,1731439851487,-500.0,0.00021973,2]
[342099310,1731439851496,-500.0,0.00021973,2]
[342099311,1731439851505,-3000.0,0.0002198,2]
[342099312,1731439851515,-3000.0,0.0002199,2]
[342099313,1731439851525,-223.82518262,0.00021997,2]
[342099314,1731439851534,-7240.83997472,0.00021997,2]
[342099315,1731439851544,-180342.16399603,0.00022,30]
[342099316,1731439851553,-10091.16649203,0.00022,2]
[342099317,1731439851562,-283.9889426,0.00022,2]
[342099318,1731439851572,-151.0,0.00022,7]
[342099319,1731439851581,-151.0,0.00022,7]
[342099320,1731439851591,-151.0,0.00022,7]
[342099321,1731439851600,-151.0,0.00022,7]
[342099322,1731439851610,-151.0,0.00022,7]
[342099323,1731439851620,-151.0,0.00022,7]
[342099324,1731439851629,-1522.661602,0.00022,7]
[342099325,1731439851638,-1522.661602,0.00022,7]
[342099326,1731439851648,-179.318074,0.00022,7]
[342099327,1731439851663,-691.531836,0.00022,7]
[342099328,1731439851672,-691.531836,0.00022,7]
[342099329,1731439851681,-151.0,0.00022,7]
[342099330,1731439851691,-152.031304,0.00022,7]
[342099331,1731439851700,-462.165652,0.00022,7]
[342099332,1731439851709,-151.0,0.00022,7]
[342099333,1731439851719,-151.0,0.00022,7]
[342099334,1731439851729,-280.742268,0.00022,7]
[342099335,1731439851738,-280.742268,0.00022,7]
[342099336,1731439851748,-151.0,0.00022,7]
[342099337,1731439851757,-151.0,0.00022,7]
[342099338,1731439851767,-151.0,0.00022,7]
[342099339,1731439851776,-3000.0,0.00022,2]
[342099340,1731439851786,-151.0,0.00022,7]
[342099341,1731439851796,-151.0,0.00022,7]
[342099342,1731439851806,-151.0,0.00022,7]
[342099343,1731439851816,-158.0,0.00022,2]
[342099344,1731439851825,-151.0,0.00022,7]
[342099345,1731439851834,-151.0,0.00022,7]
[342099346,1731439851844,-151.0,0.00022,7]
[342099347,1731439851852,-190.637347,0.00022,7]
[342099348,1731439851862,-190.637347,0.00022,7]
[342099349,1731439851871,-179.316998,0.00022,2]
[342099350,1731439851880,-197.910679,0.00022,7]
[342099351,1731439851889,-197.910679,0.00022,7]
[342099352,1731439851899,-492.087832,0.00022,7]
[342099353,1731439851911,-492.087832,0.00022,7]
[342099354,1731439851921,-151.0,0.00022,7]
[342099355,1731439851935,-151.0,0.00022,7]
[342099356,1731439851944,-154.795747,0.00022,7]
[342099357,1731439851953,-341.35031,0.00022,7]
[342099358,1731439851963,-341.35031,0.00022,7]
[342099359,1731439851973,-5821.29396252,0.0002201,16]
[342099360,1731439851982,-3000.0,0.0002201,2]
[342099361,1731439851991,-3000.0,0.0002202,2]
[342099362,1731439852002,-3000.0,0.0002203,2]
[342099363,1731439852011,-3000.0,0.0002204,2]
[342099364,1731439852021,-5776.33464668,0.00022043,2]
[342099365,1731439852031,-3000.0,0.0002205,2]
[342099366,1731439852039,-3000.0,0.0002206,2]
[342099367,1731439852048,-4991.709987,0.0002207,2]
[342099368,1731439852058,-150.112233,0.000221,10]
[342099369,1731439852066,-171.388741,0.000221,7]
[342099370,1731439852076,-615.0,0.000221,2]
[342099371,1731439852086,-368.00158629,0.00022173,2]
[342099372,1731439852095,-500.0,0.00022173,2]
[342099373,1731439852104,-500.0,0.00022173,2]
[342099374,1731439852114,-500.0,0.00022173,2]
[342099375,1731439852124,-500.54307479,0.00022173,2]
[342099376,1731439852133,-500.0,0.00022173,2]
[342099377,1731439852143,-500.03104022,0.00022173,2]
[342099378,1731439852154,-500.0,0.00022173,2]
[342099379,1731439852163,-500.0,0.00022173,2]
[342099380,1731439852172,-500.0,0.00022173,2]
[342099381,1731439852182,-500.0,0.00022173,2]
[342099382,1731439852191,-500.0,0.00022173,2]
[342099383,1731439852201,-508.05307532,0.00022173,2]
[342099384,1731439852211,-236.95787543,0.00022173,2]
[342099385,1731439852220,-500.0,0.00022173,2]
[342099386,1731439852230,-501.40739327,0.00022173,2]
[342099387,1731439852241,-168.30835415,0.00022191,2]
[342099388,1731439852251,-251.59969004,0.00022191,2]
[342099389,1731439852261,-500.0,0.00022191,2]
[342099390,1731439852270,-849.95,0.00022191,2]
[342099391,1731439852279,-500.0,0.00022191,2]
[342099392,1731439852288,-150.05,0.00022191,2]
[342099393,1731439852298,-500.0,0.00022191,2]
[342099394,1731439852307,-500.0,0.00022191,2]
[342099395,1731439852316,-500.0,0.00022191,2]
[342099396,1731439852325,-529.82064874,0.00022191,2]
[342099397,1731439852335,-151.0,0.00022191,7]
[342099398,1731439852344,-500.0,0.00022191,2]
[342099399,1731439852353,-633.25863205,0.00022191,2]
[342099400,1731439852362,-151.0,0.00022191,7]
[342099401,1731439852371,-1000.0,0.00022191,2]
[342099402,1731439852381,-151.0,0.00022191,7]
[342099403,1731439852390,-500.0,0.00022191,2]
[342099404,1731439852399,-151.0,0.00022191,7]
[342099405,1731439852411,-500.0,0.00022191,2]
[342099406,1731439852421,-565.77379087,0.00022191,2]
[342099407,1731439852430,-500.0,0.00022191,2]
[342099408,1731439852440,-500.0,0.00022191,2]
[342099409,1731439852450,-500.0,0.00022191,2]
[342099410,1731439852459,-516.91700438,0.00022191,2]
[342099411,1731439852540,-500.0,0.00022191,2]
[342099412,1731439852550,-500.0,0.00022191,2]
[342099413,1731439852559,-500.0,0.00022191,2]
[342099414,1731439852569,-578.46785895,0.00022191,2]
[342099415,1731439852578,-151.0,0.00022191,7]
[342099416,1731439852588,-500.0,0.00022191,2]
[342099417,1731439852597,-500.0,0.00022191,2]
[342099418,1731439852607,-500.0,0.00022191,2]
[342099419,1731439852616,-151.0,0.00022191,7]
[342099420,1731439852625,-500.0,0.00022191,2]
[342099421,1731439852634,-150.49262231,0.00022191,2]
[342099422,1731439852644,-500.0,0.00022191,2]
[342099423,1731439852655,-500.0,0.00022191,2]
[342099424,1731439852664,-500.0,0.00022191,2]
[342099425,1731439852674,-517.63272025,0.00022191,2]
[342099426,1731439852683,-285.23139031,0.00022191,2]
[342099427,1731439852692,-1522.661602,0.00022191,7]
[342099428,1731439852701,-278.11810971,0.00022191,2]
[342099429,1731439852710,-1522.661602,0.00022191,7]
[342099430,1731439852720,-500.0,0.00022191,2]
[342099431,1731439852729,-500.0,0.00022191,2]
[342099432,1731439852739,-1693.71,0.00022191,2]
[342099433,1731439852748,-500.0,0.00022191,2]
[342099434,1731439852757,-500.0,0.00022191,2]
[342099435,1731439852766,-500.0,0.00022191,2]
[342099436,1731439852776,-500.0,0.00022191,2]
[342099437,1731439852786,-534.65055494,0.00022191,2]
[342099438,1731439852795,-500.0,0.00022191,2]
[342099439,1731439852804,-179.318074,0.00022191,7]
[342099440,1731439852814,-500.0,0.00022191,2]
[342099441,1731439852823,-200.0,0.00022191,2]
[342099442,1731439852833,-500.0,0.00022191,2]
[342099443,1731439852844,-691.531836,0.00022191,7]
[342099444,1731439852853,-179.318074,0.00022191,7]
[342099445,1731439852863,-1246.88,0.00022191,2]
[342099446,1731439852871,-691.531836,0.00022191,7]
[342099447,1731439852884,-500.0,0.00022191,2]
[342099448,1731439852894,-500.0,0.00022191,2]
[342099449,1731439852905,-151.0,0.00022191,7]
[342099450,1731439852914,-503.05542206,0.00022191,2]
[342099451,1731439852923,-500.0,0.00022191,2]
[342099452,1731439852937,-500.0,0.00022191,2]
[342099453,1731439852947,-500.0,0.00022191,2]
[342099454,1731439852956,-500.0,0.00022191,2]
[342099455,1731439852966,-462.165652,0.00022191,7]
[342099456,1731439852975,-620.38940878,0.00022191,2]
[342099457,1731439852984,-500.0,0.00022191,2]
[342099458,1731439852993,-500.0,0.00022191,2]
[342099459,1731439853002,-500.0,0.00022191,2]
[342099460,1731439853012,-500.0,0.00022191,2]
[342099461,1731439853023,-167.12033666,0.00022191,2]
[342099462,1731439853033,-465.33575362,0.00022191,2]
[342099463,1731439853042,-151.0,0.00022191,7]
[342099464,1731439853052,-500.0,0.00022191,2]
[342099465,1731439853061,-151.0,0.00022191,7]
[342099466,1731439853071,-394.35031442,0.00022191,2]
[342099467,1731439853081,-500.0,0.00022191,2]
[342099468,1731439853091,-500.0,0.00022191,2]
[342099469,1731439853102,-500.0,0.00022191,2]
[342099470,1731439853111,-500.0,0.00022191,2]
[342099471,1731439853121,-500.0,0.00022191,2]
[342099472,1731439853131,-500.0,0.00022191,2]
[342099473,1731439853140,-500.0,0.00022191,2]
[342099474,1731439853149,-504.95335718,0.00022191,2]
[342099475,1731439853169,-500.0,0.00022191,2]
[342099476,1731439853178,-500.0,0.00022191,2]
[342099477,1731439853187,-500.0,0.00022191,2]
[342099478,1731439853197,-299.49994792,0.00022191,2]
[342099479,1731439853206,-500.0,0.00022191,2]
[342099480,1731439853215,-280.742268,0.00022191,7]
[342099481,1731439853225,-500.0,0.00022191,2]
[342099482,1731439853234,-280.742268,0.00022191,7]
[342099483,1731439853243,-625.25911648,0.00022191,2]
[342099484,1731439853253,-500.0,0.00022191,2]
[342099485,1731439853262,-500.0,0.00022191,2]
[342099486,1731439853272,-500.0,0.00022191,2]
[342099487,1731439853282,-912.13,0.00022191,2]
[342099488,1731439853291,-500.0,0.00022191,2]
[342099489,1731439853300,-500.0,0.00022191,2]
[342099490,1731439853315,-500.0,0.00022191,2]
[342099491,1731439853325,-500.0,0.00022191,2]
[342099492,1731439853334,-500.0,0.00022191,2]
[342099493,1731439853344,-500.0,0.00022191,2]
[342099494,1731439853353,-500.0,0.00022191,2]
[342099495,1731439853362,-500.0,0.00022191,2]
[342099496,1731439853372,-500.0,0.00022191,2]
[342099497,1731439853381,-629.09443447,0.00022191,2]
[342099498,1731439853392,-505.53260528,0.00022191,2]
[342099499,1731439853405,-500.0,0.00022191,2]
[342099500,1731439853415,-151.0,0.00022191,7]
[342099501,1731439853424,-500.0,0.00022191,2]
[342099502,1731439853434,-151.0,0.00022191,7]
[342099503,1731439853443,-500.0,0.00022191,2]
[342099504,1731439853452,-500.0,0.00022191,2]
[342099505,1731439853462,-500.0,0.00022191,2]
[342099506,1731439853472,-500.0,0.00022191,2]
[342099507,1731439853481,-513.89875513,0.00022191,2]
[342099508,1731439853491,-500.0,0.00022191,2]
[342099509,1731439853500,-500.0,0.00022191,2]
[342099510,1731439853510,-500.0,0.00022191,2]
[342099511,1731439853520,-224.03203094,0.00022191,2]
[342099512,1731439853529,-500.0,0.00022191,2]
[342099513,1731439853538,-151.0,0.00022191,7]
[342099514,1731439853547,-500.0,0.00022191,2]
[342099515,1731439853556,-500.0,0.00022191,2]
[342099516,1731439853566,-500.0,0.00022191,2]
[342099517,1731439853575,-165.3230218,0.00022191,2]
[342099518,1731439853584,-500.0,0.00022191,2]
[342099519,1731439853593,-500.0,0.00022191,2]
[342099520,1731439853603,-500.0,0.00022191,2]
[342099521,1731439853612,-500.0,0.00022191,2]
[342099522,1731439853621,-500.0,0.00022191,2]
[342099523,1731439853631,-500.0,0.00022191,2]
[342099524,1731439853640,-500.0,0.00022191,2]
[342099525,1731439853649,-500.0,0.00022191,2]
[342099526,1731439853661,-500.0,0.00022191,2]
[342099527,1731439853671,-500.0,0.00022191,2]
[342099528,1731439853681,-500.0,0.00022191,2]
[342099529,1731439853690,-500.0,0.00022191,2]
[342099530,1731439853700,-500.0,0.00022191,2]
[342099531,1731439853709,-500.0,0.00022191,2]
[342099532,1731439853719,-500.0,0.00022191,2]
[342099533,1731439853728,-500.0,0.00022191,2]
[342099534,1731439853738,-827.81,0.00022191,2]
[342099535,1731439853748,-500.0,0.00022191,2]
[342099536,1731439853757,-500.0,0.00022191,2]
[342099537,1731439853767,-151.0,0.00022191,7]
[342099538,1731439853777,-500.0,0.00022191,2]
[342099539,1731439853786,-500.0,0.00022191,2]
[342099540,1731439853796,-151.0,0.00022191,7]
[342099541,1731439853806,-527.55,0.00022191,2]
[342099542,1731439853815,-503.57915245,0.00022191,2]
[342099543,1731439853824,-500.0,0.00022191,2]
[342099544,1731439853833,-500.0,0.00022191,2]
[342099545,1731439853842,-500.0,0.00022191,2]
[342099546,1731439853851,-503.09831552,0.00022191,2]
[342099547,1731439853928,-500.0,0.00022191,2]
[342099548,1731439853938,-291.6045049,0.00022191,2]
[342099549,1731439853947,-500.0,0.00022191,2]
[342099550,1731439853957,-500.0,0.00022191,2]
[342099551,1731439853966,-500.0,0.00022191,2]
[342099552,1731439853976,-500.0,0.00022191,2]
[342099553,1731439853985,-500.0,0.00022191,2]
[342099554,1731439853994,-505.86750535,0.00022191,2]
[342099555,1731439854005,-283.13259939,0.00022191,2]
[342099556,1731439854014,-500.0,0.00022191,2]
[342099557,1731439854024,-607.32993467,0.00022191,2]
[342099558,1731439854033,-500.0,0.00022191,2]
[342099559,1731439854042,-500.0,0.00022191,2]
[342099560,1731439854051,-167.81339127,0.00022191,2]
[342099561,1731439854064,-500.0,0.00022191,2]
[342099562,1731439854073,-503.38310471,0.00022191,2]
[342099563,1731439854083,-500.0,0.00022191,2]
[342099564,1731439854092,-151.0,0.00022191,7]
[342099565,1731439854102,-363.81858293,0.00022191,2]
[342099566,1731439854111,-224.23965587,0.00022191,2]
[342099567,1731439854120,-500.0,0.00022191,2]
[342099568,1731439854129,-783.02,0.00022191,2]
[342099569,1731439854138,-500.0,0.00022191,2]
[342099570,1731439854147,-500.0,0.00022191,2]
[342099571,1731439854158,-500.0,0.00022191,2]
[342099572,1731439854167,-500.0,0.00022191,2]
[342099573,1731439854176,-502.06367428,0.00022191,2]
[342099574,1731439854185,-500.0,0.00022191,2]
[342099575,1731439854194,-500.0,0.00022191,2]
[342099576,1731439854203,-500.0,0.00022191,2]
[342099577,1731439854213,-500.0,0.00022191,2]
[342099578,1731439854222,-278.39863832,0.00022191,2]
[342099579,1731439854232,-600.7,0.00022191,2]
[342099580,1731439854241,-500.0,0.00022191,2]
[342099581,1731439854250,-580.6,0.00022191,2]
[342099582,1731439854260,-500.0,0.00022191,2]
[342099583,1731439854269,-500.0,0.00022191,2]
[342099584,1731439854278,-500.0,0.00022191,2]
[342099585,1731439854287,-949.86,0.00022191,2]
[342099586,1731439854297,-573.6345631,0.00022191,2]
[342099587,1731439854306,-502.19834304,0.00022191,2]
[342099588,1731439854316,-500.0,0.00022191,2]
[342099589,1731439854326,-500.0,0.00022191,2]
[342099590,1731439854334,-500.0,0.00022191,2]
[342099591,1731439854344,-500.0,0.00022191,2]
[342099592,1731439854353,-500.0,0.00022191,2]
[342099593,1731439854363,-500.0,0.00022191,2]
[342099594,1731439854371,-500.0,0.00022191,2]
[342099595,1731439854381,-500.0,0.00022191,2]
[342099596,1731439854390,-535.94,0.00022191,2]
[342099597,1731439854399,-500.0,0.00022191,2]
[342099598,1731439854410,-500.0,0.00022191,2]
[342099599,1731439854419,-151.0,0.00022191,7]
[342099600,1731439854428,-151.0,0.00022191,7]
[342099601,1731439854439,-4249.25,0.00022191,2]
[342099602,1731439854448,-500.0,0.00022191,2]
[342099603,1731439854457,-151.0,0.00022191,7]
[342099604,1731439854466,-500.0,0.00022191,2]
[342099605,1731439854476,-500.0,0.00022191,2]
[342099606,1731439854485,-500.0,0.00022191,2]
[342099607,1731439854495,-500.0,0.00022191,2]
[342099608,1731439854504,-309.80787854,0.00022191,2]
[342099609,1731439854513,-500.0,0.00022191,2]
[342099610,1731439854523,-190.637347,0.00022191,7]
[342099611,1731439854532,-500.0,0.00022191,2]
[342099612,1731439854542,-190.637347,0.00022191,7]
[342099613,1731439854551,-5866.0,0.00022191,2]
[342099614,1731439854561,-846.44,0.00022191,2]
[342099615,1731439854571,-500.0,0.00022191,2]
[342099616,1731439854580,-500.0,0.00022191,2]
[342099617,1731439854589,-500.0,0.00022191,2]
[342099618,1731439854598,-500.0,0.00022191,2]
[342099619,1731439854607,-500.0,0.00022191,2]
[342099620,1731439854616,-500.0,0.00022191,2]
[342099621,1731439854626,-500.0,0.00022191,2]
[342099622,1731439854635,-500.0,0.00022191,2]
[342099623,1731439854644,-500.0,0.00022191,2]
[342099624,1731439854654,-563.93,0.00022191,2]
[342099625,1731439854663,-500.0,0.00022191,2]
[342099626,1731439854671,-500.0,0.00022191,2]
[342099627,1731439854681,-500.0,0.00022191,2]
[342099628,1731439854690,-500.0,0.00022191,2]
[342099629,1731439854699,-620.82331189,0.00022191,2]
[342099630,1731439854709,-500.0,0.00022191,2]
[342099631,1731439854718,-500.0,0.00022191,2]
[342099632,1731439854728,-500.0,0.00022191,2]
[342099633,1731439854738,-545.5906982,0.00022191,2]
[342099634,1731439854747,-500.0,0.00022191,2]
[342099635,1731439854757,-500.0,0.00022191,2]
[342099636,1731439854767,-500.0,0.00022191,2]
[342099637,1731439854777,-500.0,0.00022191,2]
[342099638,1731439854786,-500.0,0.00022191,2]
[342099639,1731439854795,-417.26460781,0.00022191,2]
[342099675,1731440441903,167.994403,0.00013973,2]
[342099743,1731441031996,-160.26922661,0.00019661,2]
[342099745,1731441032006,-139.9592863,0.00019732,2]
[342099752,1731441032095,-1073.07068419,0.00019732,2]
[342099753,1731441032106,-3841.26284539,0.00019732,2]
[342099754,1731441032115,-161.771772,0.00019761,2]
[342099755,1731441032126,-161.771772,0.00019775,2]
[342099756,1731441032136,-161.771772,0.00019789,2]
[342099757,1731441032145,-410.89636,0.00019802,2]
[342099758,1731441032155,-161.771772,0.00019803,2]
[342099759,1731441032165,-29.88187131,0.00019817,2]
[342099799,1731441038164,-131.88990069,0.00019817,2]
[342099801,1731441038173,-3000.0,0.00019818,2]
[342099803,1731441038182,-487.48879351,0.00019822,2]
[342099804,1731441038191,-300.0,0.00019822,2]
[342099805,1731441038200,-300.0,0.00019822,2]
[342099806,1731441038209,-25681.9858612,0.00019824,2]
[342099807,1731441038219,-161.771772,0.00019831,2]
[342099808,1731441038228,-161.771772,0.00019846,2]
[342099809,1731441038237,-161.771772,0.0001986,2]
[342099810,1731441038246,-4597.1184767,0.00019943,2]
[342099811,1731441038257,-1668.75195958,0.00019943,2]
[342099812,1731441038269,-3051.41651032,0.00019943,2]
[342099813,1731441038278,-922.21331654,0.00019943,2]
[342099814,1731441038287,-1169.27083333,0.0002,2]
[342099815,1731441038296,-152.0,0.00020047,2]
[342099816,1731441038305,-1051.4975635,0.0002013,2]
[342099817,1731441038315,-155.446,0.00020623,2]
[342099818,1731441038323,-187.786,0.00020623,2]
[342099819,1731441038337,-153.0,0.00020727,2]
[342099820,1731441038346,-153.0,0.00020727,2]
[342099821,1731441038355,-153.0,0.00020727,2]
[342099822,1731441038365,-153.0,0.00020727,2]
[342099823,1731441038375,-153.0,0.00020727,2]
[342099824,1731441038384,-5054.29281584,0.00021253,2]
[342099825,1731441038393,-466.25494482,0.00021384,2]
[342099826,1731441038402,-1000.0,0.00021417,2]
[342099827,1731441038412,-195.83200074,0.00021473,2]
[342099828,1731441038421,-500.0,0.00021516,2]
[342099829,1731441038430,-500.0,0.00021516,2]
[342099830,1731441038439,-500.0,0.00021516,2]
[342099831,1731441038448,-500.0,0.00021516,2]
[342099832,1731441038458,-500.0,0.00021516,2]
[342099833,1731441038467,-347.78320773,0.00021516,2]
[342099834,1731441038478,-500.0,0.00021516,2]
[342099835,1731441038487,-500.0,0.00021516,2]
[342099836,1731441038497,-168.73028741,0.00021516,2]
[342099837,1731441038506,-500.0,0.00021516,2]
[342099838,1731441038515,-500.0,0.00021516,2]
[342099839,1731441038524,-322.4506064,0.00021516,2]
[342099840,1731441038533,-312.91211988,0.00021516,2]
[342099841,1731441038542,-546.16827961,0.00021516,2]
[342099842,1731441038552,-226.4444863,0.00021516,2]
[342099843,1731441038561,-237.77464523,0.00021516,2]
[342099844,1731441038570,-500.0,0.00021516,2]
[342099845,1731441038579,-218.84060504,0.00021516,2]
[342099846,1731441038589,-500.0,0.00021516,2]
[342099847,1731441038598,-193.47210796,0.00021516,2]
[342099848,1731441038607,-276.0566081,0.00021516,2]
[342099849,1731441038624,-240.23925625,0.00021516,2]
[342099850,1731441038636,-36744.73323995,0.00021517,2]
[342099856,1731441039882,-3627.88194319,0.00021517,2]
[342099859,1731441039896,-1022.44910204,0.00021517,2]
[342099882,1731441042988,-118883.29397156,0.00021517,2]
[342099888,1731441043099,-5938.48710113,0.00021517,2]
[342099908,1731441046556,-1169.27083333,0.0002,2]
[342099909,1731441046566,-500.0,0.00021516,2]
[342099910,1731441046576,-500.0,0.00021516,2]
[342099911,1731441046587,-500.0,0.00021516,2]
[342099912,1731441046596,-500.0,0.00021516,2]
[342099913,1731441046606,-475.05305854,0.00021516,2]
[342099914,1731441046616,-9797.41897002,0.00021517,2]
[342099915,1731441046629,-1476.62326414,0.00021517,2]
[342099916,1731441046642,-381.19999,0.00021517,2]
[342099917,1731441046654,-37399.94447338,0.00021517,2]
[342099918,1731441046664,-500.0,0.00021573,2]
[342099919,1731441046673,-503.06673909,0.00021573,2]
[342099920,1731441046684,-638.22368913,0.00021573,2]
[342099921,1731441046693,-500.0,0.00021573,2]
[342099922,1731441046704,-420.0,0.00021588,2]
[342099923,1731441046714,-500.0,0.00021739,7]
[342099924,1731441046723,-500.0,0.00021739,7]
[342099925,1731441046733,-500.0,0.00021739,7]
[342099926,1731441046743,-500.0,0.00021739,7]
[342099927,1731441046754,-503.70891044,0.00021917,2]
[342099928,1731441046763,-500.0,0.00021917,2]
[342099929,1731441046773,-500.0,0.00021917,2]
[342099930,1731441046783,-500.0,0.00021917,2]
[342099931,1731441046793,-500.0,0.00021917,2]
[342099932,1731441046803,-500.0,0.00021917,2]
[342099933,1731441046813,-570.63196335,0.00021917,2]
[342099934,1731441046822,-203.12,0.00021917,2]
[342099935,1731441046832,-500.0,0.00021917,2]
[342099936,1731441046842,-500.0,0.00021917,2]
[342099937,1731441046851,-500.0,0.00021917,2]
[342099938,1731441046860,-500.0,0.00021917,2]
[342099939,1731441046870,-500.0,0.00021917,2]
[342099940,1731441046880,-500.0,0.00021917,2]
[342099941,1731441046889,-500.0,0.00021917,2]
[342099942,1731441046899,-500.0,0.00021917,2]
[342099943,1731441046909,-500.0,0.00021917,2]
[342099944,1731441046919,-500.0,0.00021917,2]
[342099945,1731441046929,-500.0,0.00021917,2]
[342099946,1731441046939,-758.83,0.00021917,2]
[342099947,1731441046948,-507.19836782,0.00021917,2]
[342099948,1731441046958,-348.5682011,0.00021917,2]
[342099949,1731441046968,-222.95635777,0.00021917,2]
[342099950,1731441046977,-442.54961854,0.00021917,2]
[342099951,1731441046988,-500.0,0.00021917,2]
[342099952,1731441046998,-500.0,0.00021917,2]
[342099953,1731441047008,-500.0,0.00021917,2]
[342099954,1731441047018,-500.0,0.00021917,2]
[342099955,1731441047028,-500.0,0.00021917,2]
[342099956,1731441047037,-500.0,0.00021917,2]
[342099957,1731441047047,-500.0,0.00021917,2]
[342099958,1731441047056,-500.0,0.00021917,2]
[342099959,1731441047066,-500.0,0.00021917,2]
[342099960,1731441047076,-586.97981699,0.00021917,2]
[342099961,1731441047085,-500.0,0.00021917,2]
[342099962,1731441047095,-500.0,0.00021917,2]
[342099963,1731441047106,-533.35767606,0.00021917,2]
[342099964,1731441047116,-500.0,0.00021917,2]
[342099965,1731441047127,-836.12,0.00021917,2]
[342099966,1731441047137,-500.0,0.00021917,2]
[342099968,1731441047147,-500.0,0.00021917,2]
[342099970,1731441047157,-500.0,0.00021917,2]
[342099971,1731441047167,-500.0,0.00021917,2]
[342099973,1731441047177,-500.0,0.00021917,2]
[342099975,1731441047186,-522.26096472,0.00021917,2]
[342099977,1731441047196,-366.57004749,0.00021917,2]
[342099979,1731441047206,-500.0,0.00021917,2]
[342099981,1731441047216,-500.0,0.00021917,2]
[342099983,1731441047226,-500.0,0.00021917,2]
[342099985,1731441047238,-500.0,0.00021917,2]
[342099986,1731441047248,-500.0,0.00021917,2]
[342099987,1731441047258,-500.0,0.00021917,2]
[342099988,1731441047268,-500.0,0.00021917,2]
[342099989,1731441047278,-158.01385466,0.00021917,2]
[342099990,1731441047288,-500.0,0.00021917,2]
[342099991,1731441047298,-500.0,0.00021917,2]
[342099993,1731441047308,-500.0,0.00021917,2]
[342099994,1731441047317,-500.0,0.00021917,2]
[342099996,1731441047327,-500.0,0.00021917,2]
[342099997,1731441047339,-500.0,0.00021917,2]
[342099998,1731441047349,-500.0,0.00021917,2]
[342099999,1731441047359,-500.0,0.00021917,2]
[342100000,1731441047369,-173.53484878,0.00021917,2]
[342100001,1731441047382,-500.0,0.00021917,2]
[342100002,1731441047395,-504.82489191,0.00021917,2]
[342100003,1731441047405,-500.0,0.00021917,2]
[342100004,1731441047417,-510.80188284,0.00021917,2]
[342100005,1731441047428,-500.0,0.00021917,2]
[342100006,1731441047437,-434.34474823,0.00021917,2]
[342100007,1731441047446,-500.0,0.00021917,2]
[342100008,1731441047456,-500.0,0.00021917,2]
[342100009,1731441047466,-500.0,0.00021917,2]
[342100010,1731441047477,-500.0,0.00021917,2]
[342100011,1731441047490,-500.0,0.00021917,2]
[342100012,1731441047506,-384.80813835,0.00021917,2]
[342100013,1731441047516,-352.48840326,0.00021917,2]
[342100014,1731441047526,-500.0,0.00021917,2]
[342100015,1731441047535,-500.0,0.00021917,2]
[342100016,1731441047546,-500.0,0.00021917,2]